bitfinex-derivatives/quotes_SOLF0:USTF0_20260118
["timestamp","ask_amount","ask_price","bid_price","bid_amount"]
[1768754948545,0.0464582,142.09,142.05,3.87054306]
[1768754972559,3.93141257,142.09,142.05,0.04464543]
[1768754972759,9.2695969,142.08,142.02,154.67442872]
[1768754972964,9.2695969,142.07,142.02,154.67442872]
[1768754973163,5.38464253,142.06,142.02,154.67442872]
[1768754973363,3.88495437,142.07,142.02,154.67442872]
[1768754974556,0.04456604,142.06,142.02,154.67442872]
[1768754976568,0.04456604,142.06,142.02,158.56370202]
[1768754982368,0.04456604,142.06,142.02,154.67442872]
[1768754983071,10.27046478,142.06,142.02,154.67442872]
[1768754983379,3.88819874,142.05,142.02,115.94216448]
[1768754984775,3.88819874,142.05,142.0,5.66556468]
[1768754988476,10.22639874,142.05,142.0,3.8892733]
[1768755001991,3.88819874,142.05,142.0,3.8892733]
[1768755008595,3.84656698,142.04,141.97,3.71590545]
[1768755008797,3.84656698,142.03,141.97,3.71590545]
[1768755012901,10.18566698,142.03,141.97,3.71590545]
[1768755018404,6.3391,142.03,141.99,3.71590545]
[1768755019895,3.84656698,142.04,141.99,3.71590545]
[1768755020506,10.18506698,142.04,141.99,3.71590545]
[1768755022108,10.18506698,142.04,141.98,1.77629138]
[1768755022905,10.18506698,142.04,141.97,5.49403081]
[1768755023108,3.80398805,142.02,141.97,3.71590545]
[1768755023305,3.80398805,142.02,141.95,3.75574389]
[1768755024006,9.19583111,142.01,141.95,3.75574389]
[1768755024207,3.80398805,142.01,141.95,3.75574389]
[1768755030214,3.80398805,142.04,141.95,3.75574389]
[1768755030410,5.39109742,142.03,141.98,1.77812536]
[1768755030707,3.80398805,142.06,142.01,3.75574389]
[1768755030909,3.80398805,142.08,142.01,3.75574389]
[1768755031211,5.39221568,142.07,142.01,3.75574389]
[1768755031406,3.80398805,142.08,142.03,3.75574389]
[1768755031606,266.24,142.09,142.03,3.75574389]
[1768755031813,3.80398805,142.12,142.05,3.75574389]
[1768755032011,5.39180976,142.11,142.05,3.75574389]
[1768755032208,3.80398805,142.12,142.05,3.75574389]
[1768755033513,3.80398805,142.12,142.07,3.75574389]
[1768755033702,5.58211341,142.14,142.07,3.75574389]
[1768755033904,3.80398805,142.14,142.07,3.75574389]
[1768755035510,5.58211341,142.14,142.07,3.75574389]
[1768755035908,3.80398805,142.13,142.07,3.75574389]
[1768755038819,0.04485969,142.11,142.09,0.045321]
[1768755043120,3.6035628,142.11,142.05,3.70355554]
[1768755043321,1.77812536,142.1,142.05,3.70355554]
[1768755048724,3.6035628,142.11,142.05,3.70355554]
[1768755052924,3.6035628,142.11,142.05,10.04145554]
[1768755053826,5.30530641,142.1,142.05,3.70355554]
[1768755056223,5.30530641,142.1,142.04,6.3382]
[1768755056434,3.52718105,142.09,142.03,3.54168393]
[1768755057428,0.05423471,142.07,142.03,3.54168393]
[1768755057827,0.05423471,142.07,142.03,9.88048393]
[1768755062531,0.05423471,142.07,142.04,9.87998393]
[1768755062833,1.77812536,142.1,142.04,9.87998393]
[1768755063734,5.30530641,142.1,142.04,9.87998393]
[1768755069145,3.52718105,142.1,142.04,9.87998393]
[1768755079843,3.52718105,142.1,142.04,3.54168393]
[1768755082262,9.86298105,142.1,142.04,3.54168393]
[1768755087162,3.52718105,142.1,142.04,3.54168393]
[1768755097269,5.35867048,142.09,142.04,3.54168393]
[1768755097468,9.86298105,142.1,142.04,3.54168393]
[1768755097671,5.3537012,142.09,142.04,3.54168393]
[1768755097863,9.86298105,142.1,142.04,3.54168393]
[1768755098062,5.3543969,142.09,142.04,3.54168393]
[1768755098261,9.86298105,142.1,142.04,3.54168393]
[1768755098470,5.35596296,142.09,142.04,3.54168393]
[1768755098669,9.86298105,142.1,142.04,3.54168393]
[1768755098867,5.35568124,142.09,142.04,3.54168393]
[1768755099065,9.86298105,142.1,142.04,3.54168393]
[1768755099265,5.356078,142.09,142.04,3.54168393]
[1768755099467,9.86298105,142.1,142.04,3.54168393]
[1768755099666,5.35602967,142.09,142.04,3.54168393]
[1768755099868,9.86298105,142.1,142.04,3.54168393]
[1768755100069,5.35613856,142.09,142.04,3.54168393]
[1768755100267,6.3362,142.09,142.04,3.54168393]
[1768755102982,3.41786709,142.08,142.02,3.69326396]
[1768755103776,9.75456709,142.08,142.02,3.69326396]
[1768755106178,6.3371,142.07,142.02,3.69326396]
[1768755109985,3.41786709,142.08,142.02,3.69326396]
[1768755119092,3.39866465,142.07,142.0,9.73858037]
[1768755119293,3.39866465,142.06,142.0,3.39848037]
[1768755119488,1.77654486,142.05,142.0,3.39848037]
[1768755121895,9.73636465,142.06,142.0,3.39848037]
[1768755122592,6.3377,142.06,142.0,3.39848037]
[1768755126000,5.17520951,142.07,142.0,3.39848037]
[1768755128104,5.17520951,142.07,142.01,3.39848037]
[1768755128803,1.77654486,142.08,142.02,3.39848037]
[1768755129205,1.77654486,142.08,142.02,9.73768037]
[1768755129403,1.77654486,142.08,142.01,1.77654486]
[1768755129404,3.39866465,142.09,142.03,3.39848037]
[1768755130305,3.39866465,142.09,142.03,9.73698037]
[1768755142919,5.17551923,142.09,142.03,9.73698037]
[1768755144119,5.17551923,142.09,142.03,3.39848037]
[1768755155322,3.44234397,142.11,142.03,3.39848037]
[1768755155515,5.21919855,142.11,142.03,3.39848037]
[1768755155716,5.21919855,142.11,142.05,3.69569349]
[1768755156021,0.04808163,142.08,142.05,3.69569349]
[1768755156223,5.21919855,142.11,142.05,3.69569349]
[1768755157220,5.33918709,142.1,142.05,3.69569349]
[1768755158524,5.21919855,142.11,142.05,3.69569349]
[1768755158943,5.34498786,142.1,142.05,3.69569349]
[1768755159218,5.21919855,142.11,142.05,3.69569349]
[1768755159422,5.34498786,142.1,142.05,3.69569349]
[1768755159622,5.21919855,142.11,142.05,3.69569349]
[1768755159819,5.34484122,142.1,142.05,3.69569349]
[1768755160125,5.21919855,142.11,142.05,3.69569349]
[1768755160327,5.34514762,142.1,142.05,3.69569349]
[1768755160528,5.21919855,142.11,142.05,3.69569349]
[1768755160826,5.34502197,142.1,142.05,3.69569349]
[1768755161021,5.21919855,142.11,142.05,3.69569349]
[1768755161221,5.34498861,142.1,142.05,3.69569349]
[1768755161519,5.21919855,142.11,142.05,3.69569349]
[1768755161720,5.34484138,142.1,142.05,3.69569349]
[1768755161921,5.21919855,142.11,142.05,3.69569349]
[1768755162123,5.34484138,142.1,142.05,3.69569349]
[1768755162324,5.21919855,142.11,142.05,3.69569349]
[1768755162524,5.34467692,142.1,142.05,3.69569349]
[1768755162725,5.21919855,142.11,142.05,3.69569349]
[1768755162926,5.34467693,142.1,142.05,3.69569349]
[1768755163128,5.21919855,142.11,142.05,3.69569349]
[1768755163321,5.34467393,142.1,142.05,3.69569349]
[1768755163520,5.21919855,142.11,142.05,3.69569349]
[1768755163721,5.34454807,142.1,142.05,3.69569349]
[1768755163922,5.21919855,142.11,142.05,3.69569349]
[1768755164119,5.34454807,142.1,142.05,3.69569349]
[1768755164320,5.21919855,142.11,142.05,3.69569349]
[1768755164521,5.34464714,142.1,142.05,3.69569349]
[1768755164725,5.21919855,142.11,142.05,3.69569349]
[1768755164926,5.34464714,142.1,142.05,3.69569349]
[1768755165233,5.21919855,142.11,142.05,3.69569349]
[1768755165426,5.34467161,142.1,142.05,3.69569349]
[1768755165730,5.21919855,142.11,142.05,3.69569349]
[1768755165931,5.34467161,142.1,142.05,3.69569349]
[1768755166130,5.21919855,142.11,142.05,3.69569349]
[1768755166326,5.34519,142.1,142.05,3.69569349]
[1768755166625,5.21919855,142.11,142.05,3.69569349]
[1768755166826,5.34519,142.1,142.05,3.69569349]
[1768755167021,5.21919855,142.11,142.05,3.69569349]
[1768755167223,5.34576235,142.1,142.05,3.69569349]
[1768755167427,3.44234397,142.11,142.0,60.43384807]
[1768755167629,5.34576235,142.1,142.03,1.77685458]
[1768755167828,3.44234397,142.11,142.03,1.77685458]
[1768755168034,5.34576235,142.1,142.03,1.77685458]
[1768755168229,3.44234397,142.11,142.03,1.77685458]
[1768755168433,5.34643565,142.1,141.99,98.6296]
[1768755168633,9.77774397,142.11,142.03,1.77685458]
[1768755168830,5.34643565,142.1,142.03,1.77685458]
[1768755169030,9.77774397,142.11,142.03,1.77685458]
[1768755169231,5.34722988,142.1,142.03,1.77685458]
[1768755169433,9.77774397,142.11,142.04,2.77071559]
[1768755169634,5.34722988,142.1,142.04,2.77071559]
[1768755169934,9.77774397,142.11,142.04,2.77071559]
[1768755170133,5.34722988,142.1,142.04,2.77071559]
[1768755170332,9.77774397,142.11,142.04,2.77071559]
[1768755170531,5.34817658,142.1,142.04,2.77071559]
[1768755170732,9.77774397,142.11,142.04,2.77071559]
[1768755170932,5.34804039,142.1,142.04,2.77071559]
[1768755171133,9.77774397,142.11,142.04,2.77071559]
[1768755171434,5.34933482,142.1,142.04,2.77071559]
[1768755171635,9.77774397,142.11,142.05,2.78523348]
[1768755171836,5.34935495,142.1,142.05,2.78523348]
[1768755172037,9.77774397,142.11,142.05,2.78523348]
[1768755172239,5.35066074,142.1,142.05,2.78523348]
[1768755172434,9.77774397,142.11,142.05,2.78523348]
[1768755172636,5.35066074,142.1,142.05,2.78523348]
[1768755172837,9.77774397,142.11,142.05,2.78523348]
[1768755173036,5.35066074,142.1,142.05,2.78523348]
[1768755173238,9.77774397,142.11,142.05,2.78523348]
[1768755173440,5.35253816,142.1,142.05,2.78523348]
[1768755173638,3.44234397,142.11,142.05,2.78523348]
[1768755173837,5.35259067,142.1,142.05,2.78523348]
[1768755174040,3.44234397,142.11,142.05,2.78523348]
[1768755174242,5.3534998,142.1,142.05,2.78523348]
[1768755174437,3.44234397,142.11,142.05,2.78523348]
[1768755174636,5.3534998,142.1,142.05,2.78523348]
[1768755174836,3.44234397,142.11,142.05,2.78523348]
[1768755175037,5.3534998,142.1,142.05,2.78523348]
[1768755175235,3.44234397,142.11,142.05,2.78523348]
[1768755175435,5.35331013,142.1,142.05,2.78523348]
[1768755175636,3.44234397,142.11,142.05,2.78523348]
[1768755175840,5.35331013,142.1,142.05,2.78523348]
[1768755176145,3.44234397,142.11,142.05,2.78523348]
[1768755176340,5.3531519,142.1,142.05,2.78523348]
[1768755176534,3.44234397,142.11,142.05,2.78523348]
[1768755176736,5.3531519,142.1,142.05,2.78523348]
[1768755176935,3.44234397,142.11,142.05,2.78523348]
[1768755177135,5.35313593,142.1,142.05,2.78523348]
[1768755177344,3.44234397,142.11,142.05,2.78523348]
[1768755177543,5.3530094,142.1,142.05,2.78523348]
[1768755177743,3.44234397,142.11,142.05,2.78523348]
[1768755177944,5.35302954,142.1,142.05,2.78523348]
[1768755178143,3.44234397,142.11,142.05,2.78523348]
[1768755178340,5.3529227,142.1,142.05,2.78523348]
[1768755178544,3.44234397,142.11,142.05,2.78523348]
[1768755178745,5.3529227,142.1,142.05,2.78523348]
[1768755179045,3.44234397,142.11,142.05,2.78523348]
[1768755179246,5.35356862,142.1,142.05,2.78523348]
[1768755179444,3.44234397,142.11,142.05,2.78523348]
[1768755179747,5.35331865,142.1,142.05,2.78523348]
[1768755180044,3.44234397,142.11,142.05,2.78523348]
[1768755180345,5.35395141,142.1,142.05,2.78523348]
[1768755180538,3.44234397,142.11,142.05,2.78523348]
[1768755180739,5.35395141,142.1,142.05,2.78523348]
[1768755180941,3.44234397,142.11,142.05,2.78523348]
[1768755181146,5.35394585,142.1,142.05,2.78523348]
[1768755181443,3.44234397,142.11,142.05,2.78523348]
[1768755181642,5.35384633,142.1,142.05,2.78523348]
[1768755181846,3.44234397,142.11,142.05,2.78523348]
[1768755182046,5.35372112,142.1,142.05,2.78523348]
[1768755182241,3.44234397,142.11,142.05,2.78523348]
[1768755182441,5.35361515,142.1,142.05,2.78523348]
[1768755182739,3.44234397,142.11,142.05,2.78523348]
[1768755182942,5.35361515,142.1,142.05,2.78523348]
[1768755183241,9.77774397,142.11,142.05,2.78523348]
[1768755183448,5.35353413,142.1,142.05,2.78523348]
[1768755183747,9.77774397,142.11,142.05,2.78523348]
[1768755184047,5.35353413,142.1,142.05,2.78523348]
[1768755184247,9.77774397,142.11,142.05,2.78523348]
[1768755184448,5.35347416,142.1,142.05,2.78523348]
[1768755184649,9.77774397,142.11,142.05,2.78523348]
[1768755184948,5.35347972,142.1,142.05,2.78523348]
[1768755185247,9.77774397,142.11,142.05,2.78523348]
[1768755185449,5.35344057,142.1,142.05,2.78523348]
[1768755185648,9.77774397,142.11,142.05,2.78523348]
[1768755185849,5.35344057,142.1,142.05,2.78523348]
[1768755186044,9.77774397,142.11,142.05,2.78523348]
[1768755186244,5.3534641,142.1,142.05,2.78523348]
[1768755186448,3.49350856,142.1,142.05,2.78523348]
[1768755188049,3.49350856,142.1,142.05,9.12313348]
[1768755194650,3.49350856,142.12,142.06,2.93580144]
[1768755194852,1.77685458,142.13,142.07,2.94119525]
[1768755195553,1.77685458,142.13,142.07,9.27819525]
[1768755198952,1.77685458,142.13,142.08,6.3365]
[1768755202765,5.4933424,142.13,142.08,6.3365]
[1768755204857,5.49227576,142.13,142.08,6.3365]
[1768755207157,5.49227576,142.13,142.08,9.34079304]
[1768755218863,5.49227576,142.13,142.08,3.00429304]
[1768755225771,1.77578794,142.13,142.08,3.00429304]
[1768755226472,505.52392747,142.14,142.08,9.34069304]
[1768755226672,505.52392747,142.14,142.09,3.08695738]
[1768755229568,239.46392747,142.14,142.09,3.08695738]
[1768755229969,5.31930108,142.15,142.09,3.08695738]
[1768755231075,3.54351314,142.17,142.11,3.10421683]
[1768755231674,267.81578794,142.18,142.11,3.10421683]
[1768755231975,271.35930108,142.18,142.11,3.10421683]
[1768755232270,3.4959564,142.17,142.11,3.10421683]
[1768755232475,5.27174434,142.17,142.11,3.10421683]
[1768755232778,3.4959564,142.17,142.11,3.10421683]
[1768755233175,5.27174434,142.17,142.11,3.10421683]
[1768755234771,3.4959564,142.17,142.11,3.10421683]
[1768755235374,1.77578794,142.18,142.11,3.10421683]
[1768755235580,5.27174434,142.18,142.11,3.10421683]
[1768755235780,3.4959564,142.18,142.12,3.12532952]
[1768755235976,5.27174434,142.18,142.12,3.12532952]
[1768755237381,1.77578794,142.16,142.1,3.12844197]
[1768755239379,5.27174434,142.16,142.1,3.12844197]
[1768755239581,3.4959564,142.16,142.1,3.12844197]
[1768755239782,5.27174434,142.16,142.1,3.12844197]
[1768755239982,5.27174434,142.16,142.1,9.46404197]
[1768755241479,1.77578794,142.14,142.1,6.3356]
[1768755241677,5.27174434,142.14,142.08,9.47691448]
[1768755246688,3.4959564,142.13,142.08,9.47691448]
[1768755255088,3.4959564,142.15,142.08,9.47691448]
[1768755255293,5.27174434,142.15,142.09,3.17834187]
[1768755264903,3.4959564,142.15,142.09,3.17834187]
[1768755266999,3.4959564,142.15,142.08,6.3365]
[1768755267504,3.4959564,142.15,142.08,9.54526932]
[1768755274005,9.8295564,142.15,142.08,9.54526932]
[1768755274213,3.85186703,142.14,142.08,3.20876932]
[1768755278110,10.16730689,142.15,142.09,3.23027334]
[1768755278923,3.83370689,142.14,142.09,3.23027334]
[1768755295921,3.83370689,142.14,142.08,6.3365]
[1768755296626,3.83370689,142.14,142.08,9.42693444]
[1768755300729,3.83370689,142.14,142.09,3.03271874]
[1768755304427,3.78136624,142.16,142.09,9.36881874]
[1768755304626,5.36510499,142.15,142.1,2.99965607]
[1768755304827,3.78136624,142.16,142.1,2.99965607]
[1768755305332,3.78136624,142.18,142.12,2.98888738]
[1768755305532,5.36351827,142.17,142.12,2.98888738]
[1768755305726,3.78136624,142.18,142.12,2.98888738]
[1768755305927,5.36351827,142.17,142.12,2.98888738]
[1768755306127,3.78136624,142.17,142.12,2.98888738]
[1768755307333,0.04900249,142.16,142.13,0.05125644]
[1768755351074,9.79923022,142.16,142.09,2.59254444]
[1768755351472,5.19167162,142.15,142.09,2.59254444]
[1768755351975,9.75102773,142.14,142.09,2.59254444]
[1768755352974,0.04872504,142.13,142.09,2.59254444]
[1768755376997,0.04872504,142.13,142.06,2.45169935]
[1768755376998,6.38322504,142.13,142.06,2.45169935]
[1768755377991,1.77464389,142.12,142.06,2.45169935]
[1768755379802,6.3353,142.11,142.06,2.45169935]
[1768755380701,0.04491604,142.1,142.06,2.45169935]
[1768755381598,6.3353,142.11,142.06,2.45169935]
[1768755381792,1.77464389,142.14,142.06,1.77464389]
[1768755382194,6.3353,142.11,142.06,1.77464389]
[1768755385994,11.62578527,142.14,142.06,1.77464389]
[1768755388903,11.62678684,142.14,142.05,1.77564546]
[1768755390903,3.51704138,142.13,142.05,1.77564546]
[1768755397913,3.51704138,142.13,142.05,8.11354546]
[1768755399915,5.35999733,142.12,142.02,98.6095]
[1768755400108,5.35999733,142.11,142.05,1.77564546]
[1768755400307,3.51704138,142.13,142.05,1.77564546]
[1768755400509,5.35993485,142.12,142.05,1.77564546]
[1768755400709,5.35993485,142.11,142.05,1.77564546]
[1768755401007,3.51704138,142.13,142.02,56.72304546]
[1768755401214,5.41933604,142.12,142.05,1.77564546]
[1768755401404,5.41933604,142.11,142.05,1.77564546]
[1768755401612,5.29268684,142.13,142.05,1.77564546]
[1768755401810,5.41929859,142.12,142.05,1.77564546]
[1768755402107,5.41929859,142.11,142.05,1.77564546]
[1768755402405,5.29268684,142.13,142.05,1.77564546]
[1768755402605,5.41928657,142.12,142.05,1.77564546]
[1768755402809,5.41928657,142.11,142.06,6.3374]
[1768755403016,5.29268684,142.13,142.06,6.3374]
[1768755403219,5.41928657,142.12,142.06,6.3374]
[1768755403410,5.41928657,142.11,142.06,6.3374]
[1768755403611,5.29268684,142.13,142.06,6.3374]
[1768755403916,5.41929987,142.12,142.06,6.3374]
[1768755404111,5.41929987,142.11,142.06,6.3374]
[1768755404410,5.29268684,142.13,142.06,6.3374]
[1768755404612,5.41933862,142.12,142.06,6.3374]
[1768755404910,5.41933862,142.11,142.06,6.3374]
[1768755405112,5.29268684,142.13,142.06,6.3374]
[1768755405409,5.41934142,142.12,142.06,6.3374]
[1768755405609,5.41934142,142.11,142.06,6.3374]
[1768755405810,5.29268684,142.13,142.06,6.3374]
[1768755406010,5.41936744,142.12,142.06,6.3374]
[1768755406210,0.04447619,142.1,142.06,6.3374]
[1768755411924,0.04447619,142.1,142.04,8.11364546]
[1768755412223,0.04447619,142.1,142.04,1.77564546]
[1768755412822,0.04447619,142.1,142.05,6.3379]
[1768755413130,0.04447619,142.1,142.02,322.52304546]
[1768755413131,8.87494774,142.09,142.02,1.77564546]
[1768755413329,3.45326341,142.09,142.06,0.04573374]
[1768755413930,3.50412961,142.09,142.06,0.04573374]
[1768755427336,0.0508662,142.09,142.06,0.04573374]
[1768755428741,3.45326341,142.11,142.06,1.8213792]
[1768755433945,3.45326341,142.11,142.06,0.04573374]
[1768755434448,3.45326341,142.09,142.06,0.04573374]
[1768755441751,3.45326341,142.11,142.06,0.04573374]
[1768755441957,5.42928825,142.1,142.06,0.04573374]
[1768755442159,5.42928825,142.09,142.06,0.04573374]
[1768755442456,3.45326341,142.1,142.06,0.04573374]
[1768755442650,5.4293314,142.09,142.06,0.04573374]
[1768755442850,3.45326341,142.1,142.06,0.04573374]
[1768755443051,8.5423527,142.09,142.06,0.04573374]
[1768755443246,3.11301738,142.09,142.06,0.04573374]
[1768755448261,3.11301738,142.11,142.06,0.04573374]
[1768755448563,3.11301738,142.11,142.06,1.8213792]
[1768755448955,3.11301738,142.11,142.06,1.82139016]
[1768755455169,3.11301738,142.11,142.05,1.77565642]
[1768755455374,3.11301738,142.11,142.02,56.76799016]
[1768755455564,3.11301738,142.11,142.05,1.77565642]
[1768755455771,3.11301738,142.11,142.05,8.11355642]
[1768755462779,3.11301738,142.11,142.05,6.3379]
[1768755462980,3.11301738,142.11,142.05,8.11355642]
[1768755463180,3.11301738,142.11,142.05,6.3379]
[1768755465075,8.69575314,142.1,142.05,6.3379]
[1768755465276,3.27101861,142.1,142.05,6.3379]
[1768755469181,0.04619259,142.09,142.06,0.04517564]
[1768755482790,3.27101861,142.1,142.06,0.04517564]
[1768755489605,3.27101861,142.1,142.06,6.38267564]
[1768755492108,1.77565642,142.13,142.06,6.38267564]
[1768755492309,5.42798774,142.12,142.06,6.38267564]
[1768755492508,5.42798774,142.11,142.06,6.38267564]
[1768755492710,5.42798774,142.1,142.06,6.38267564]
[1768755492910,1.77565642,142.13,142.06,6.38267564]
[1768755493208,5.42803475,142.12,142.07,6.337]
[1768755493408,5.42803475,142.11,142.07,6.337]
[1768755493707,5.42803475,142.1,142.07,6.337]
[1768755493908,1.77565642,142.13,142.07,6.337]
[1768755494106,3.20686233,142.11,142.07,6.337]
[1768755494310,5.42813072,142.1,142.07,6.337]
[1768755494606,3.20686233,142.11,142.07,6.337]
[1768755494808,5.42813149,142.1,142.07,6.337]
[1768755495106,3.20686233,142.11,142.07,6.337]
[1768755495309,5.4281328,142.1,142.07,6.337]
[1768755495506,3.20686233,142.11,142.07,6.337]
[1768755503227,3.20686233,142.11,142.08,6.3366]
[1768755516032,3.09547655,142.13,142.08,6.3366]
[1768755516929,3.09547655,142.13,142.09,0.0505132]
[1768755519635,9.43007655,142.13,142.05,6.3377]
[1768755519833,3.16850223,142.11,142.05,6.3377]
[1768755524237,3.16850223,142.11,142.03,6.3385]
[1768755524440,3.16850223,142.11,142.03,8.11420718]
[1768755525741,3.16850223,142.09,142.01,8.11510718]
[1768755526038,3.16850223,142.08,142.01,6.3394]
[1768755526239,3.16850223,142.08,142.0,1.77570718]
[1768755529040,3.16850223,142.08,141.99,6.3404]
[1768755529340,3.16850223,142.08,142.0,1.77570718]
[1768755533945,3.16850223,142.08,142.0,8.11580718]
[1768755541643,3.16850223,142.08,142.01,1.77570718]
[1768755553553,3.16850223,142.08,142.01,8.11540718]
[1768755557261,3.10404813,142.07,141.99,1.77570718]
[1768755558867,3.10404813,142.06,141.99,1.77570718]
[1768755559461,3.10404813,142.06,141.96,98.6524]
[1768755559462,3.10404813,142.05,141.97,6.3413]
[1768755559655,3.10404813,142.05,141.97,8.11700718]
[1768755559656,3.10404813,142.04,141.97,8.11700718]
[1768755559865,3.10404813,142.04,141.92,197.3563]
[1768755560164,3.10404813,142.03,141.95,8.11790718]
[1768755572884,3.10404813,142.03,141.96,1.77803151]
[1768755573183,3.10404813,142.03,141.95,6.3422]
[1768755573383,3.10404813,142.03,141.96,1.77803151]
[1768755575783,3.08516062,142.05,141.98,8.11903151]
[1768755575982,3.08516062,142.05,142.0,1.77803151]
[1768755577187,3.08516062,142.05,141.99,1.77803151]
[1768755577787,3.08516062,142.05,141.98,6.341]
[1768755577986,3.08516062,142.05,141.99,1.77803151]
[1768755580790,3.08516062,142.05,141.98,6.341]
[1768755581490,3.08516062,142.05,141.99,1.77803151]
[1768755589492,0.04853077,142.03,141.99,1.77803151]
[1768755589693,0.04853077,142.03,142.01,0.04474238]
[1768755593800,3.35709183,142.03,141.98,1.77803151]
[1768755600105,3.35709183,142.03,141.97,6.3414]
[1768755600304,3.35709183,142.03,141.99,1.77735741]
[1768755600899,0.04853077,142.03,141.99,1.77735741]
[1768755601101,3.30856106,142.05,142.01,1.77735741]
[1768755605399,3.30856106,142.07,142.03,1.77735741]
[1768755605603,3.30856106,142.1,142.03,1.77735741]
[1768755605802,3.30856106,142.09,142.03,1.77735741]
[1768755607508,3.30856106,142.09,142.05,0.04607247]
[1768755608011,0.05163749,142.07,142.02,6.3392]
[1768755672260,3.33582314,142.07,142.02,6.3392]
[1768755678671,3.33582314,142.07,142.0,8.11667695]
[1768755678966,3.33582314,142.07,142.0,1.77677695]
[1768755679766,3.33582314,142.07,142.01,6.3397]
[1768755684573,3.33582314,142.07,142.01,8.11647695]
[1768755684770,3.33582314,142.07,141.99,8.11697695]
[1768755685072,3.33582314,142.07,141.99,1.77677695]
[1768755685277,3.28418565,142.07,141.99,1.77677695]
[1768755685680,0.0491387,142.04,141.99,1.77677695]
[1768755685878,0.0491387,142.04,142.0,6.3401]
[1768755694580,3.28418565,142.07,142.01,1.77677695]
[1768755694984,3.28418565,142.07,142.01,1.77689238]
[1768755702890,3.28418565,142.07,142.01,8.11649238]
[1768755709599,3.28418565,142.07,142.01,6.3396]
[1768755718800,3.1980533,142.1,142.02,8.11599238]
[1768755718993,3.1980533,142.1,142.02,1.77689238]
[1768755719502,3.1980533,142.07,141.99,1.77689238]
[1768755720396,3.1980533,142.07,142.01,6.3396]
[1768755721211,3.1980533,142.07,141.99,8.11719238]
[1768755724108,3.1980533,142.07,141.97,98.6433]
[1768755724109,3.1980533,142.06,141.97,8.11809238]
[1768755725805,6.3376,142.06,141.97,8.11809238]
[1768755726112,3.1980533,142.05,141.97,8.11809238]
[1768755726310,3.1980533,142.05,141.98,6.341]
[1768755729213,3.1980533,142.04,141.96,6.3417]
[1768755729408,3.1980533,142.01,141.93,1.77689238]
[1768755729913,3.1980533,142.0,141.93,1.77689238]
[1768755730312,3.1980533,141.99,141.93,1.77689238]
[1768755730510,3.1980533,142.01,141.94,1.77689238]
[1768755730712,3.1980533,142.01,141.96,1.77689238]
[1768755733418,3.1980533,142.01,141.95,1.77689238]
[1768755751043,3.1980533,142.01,141.95,8.11919238]
[1768755752448,3.1980533,142.01,141.95,6.3423]
[1768755755950,3.1980533,142.01,141.93,6.343]
[1768755756151,1.77853611,142.0,141.93,6.343]
[1768755756343,3.05530945,141.99,141.93,6.343]
[1768755761553,3.05530945,141.99,141.94,6.3427]
[1768755761954,3.27441417,142.01,141.94,1.77853611]
[1768755762753,3.27441417,142.01,141.96,6.3419]
[1768755770164,3.27441417,142.03,141.96,1.77853611]
[1768755771761,3.27441417,142.03,141.98,6.341]
[1768755772065,3.27441417,142.05,141.98,8.11953611]
[1768755772461,3.27441417,142.05,142.0,1.77853611]
[1768755772664,3.29639856,142.08,142.0,1.77853611]
[1768755772965,3.29639856,142.08,142.02,1.77853611]
[1768755774572,3.29639856,142.08,142.01,8.11813611]
[1768755779674,3.29639856,142.08,142.02,6.3391]
[1768755779972,3.29639856,142.08,142.03,1.77853611]
[1768755780869,3.29639856,142.08,142.04,0.05348811]
[1768755781377,0.0446341,142.07,142.04,0.05348811]
[1768755783372,3.34103266,142.07,142.01,1.77853611]
[1768755788680,3.34103266,142.07,142.0,6.34]
[1768755788881,3.34103266,142.07,142.01,1.77853611]
[1768755791174,3.34103266,142.07,142.0,6.34]
[1768755794474,3.34103266,142.07,142.01,6.3396]
[1768755794878,3.34103266,142.07,142.01,8.11813611]
[1768755805287,3.32684336,142.06,141.99,6.3404]
[1768755805485,3.32684336,142.06,141.98,1.77853611]
[1768755806790,0.05190977,142.03,141.98,8.11953611]
[1768755808390,9.66384336,142.08,142.0,1.77853611]
[1768755808781,3.32684336,142.07,142.0,1.77853611]
[1768755809791,0.04864565,142.05,142.0,8.11863611]
[1768755814994,0.04864565,142.05,142.0,8.11704924]
[1768755816393,3.32684336,142.07,142.01,0.04950952]
[1768755817287,9.68404984,142.06,142.01,0.04950952]
[1768755817893,3.39358569,142.05,141.98,6.341]
[1768755818090,3.39358569,142.05,141.98,8.11794924]
[1768755818892,3.39358569,142.05,141.95,6.3421]
[1768755818893,3.34644984,142.04,141.95,6.3421]
[1768755819194,3.34644984,142.04,141.95,1.77694924]
[1768755819897,0.05063777,142.01,141.95,1.77694924]
[1768755820797,0.05063777,142.01,141.96,6.3419]
[1768755829198,3.34644984,141.98,141.9,13.17619547]
[1768755829398,3.34644984,141.98,141.9,1.77694924]
[1768755829794,3.34644984,141.98,141.9,8.12124924]
[1768755830108,0.04500551,141.95,141.9,8.12124924]
[1768755841410,0.04500551,141.95,141.9,6.3443]
[1768755843115,3.34644984,141.98,141.91,1.82624862]